fUST/lending_fUST_20260107
["ID","MTS","AMOUNT","RATE_DAILY","PERIOD"]
[400609865,1767742837139,-207.137,0.00013046,2]
[400609866,1767742837175,-605.0,0.00013046,2]
[400609867,1767742837212,-242.77850565,0.00013103,2]
[400609868,1767742837246,-432.62119776,0.00013271,2]
[400609869,1767742837282,-500.0,0.00013271,2]
[400609870,1767742837317,-500.0,0.00013271,2]
[400609871,1767742837354,-500.0,0.00013271,2]
[400609872,1767742837401,-500.0,0.00013271,2]
[400609873,1767742837454,-500.0,0.00013271,2]
[400609874,1767742837497,-500.0,0.00013271,2]
[400609875,1767742837539,-500.0,0.00013271,2]
[400609876,1767742855531,-156.31,9.664e-05,2]
[400609877,1767742855568,-178.65,0.00010022,2]
[400609878,1767742855605,-200.98,0.0001038,2]
[400609879,1767742855643,-223.31,0.00010738,2]
[400609880,1767742859382,3793.60845784,9.567e-05,2]
[400609881,1767742989202,-2001.20283999,0.00013173,2]
[400609882,1767743027226,-4002.40567998,0.00013173,2]
[400609884,1767743049262,8464.6778865,0.00012299,2]
[400609885,1767743053053,180.71,8.138e-05,2]
[400609886,1767743053484,240.95,8.492e-05,2]
[400609887,1767743053909,301.19,8.845e-05,2]
[400609888,1767743054341,361.43,9.199e-05,2]
[400609889,1767743054763,421.66,9.553e-05,2]
[400609890,1767743055193,29.3921135,9.907e-05,2]
[400609891,1767743055219,452.5078865,9.907e-05,2]
[400609892,1767743055661,542.14,0.00010261,2]
[400609893,1767743056081,602.38,0.00010615,2]
[400609894,1767743060436,362.58,0.00012329,2]
[400609895,1767743070868,302.15,0.00012329,2]
[400609896,1767743081315,251.79,0.00012329,2]
[400609898,1767743091674,572.41,0.00012329,2]
[400609901,1767743102090,477.01,0.00012329,2]
[400609902,1767743112502,397.51,0.00012329,2]
[400609905,1767743122963,331.26,0.00012329,2]
[400609906,1767743127781,158.55,0.0001059,2]
[400609907,1767743128226,184.98,0.00010997,2]
[400609908,1767743128670,211.4,0.00011405,2]
[400609909,1767743129125,237.83,0.00011812,2]
[400609910,1767743129566,264.25,0.00012219,2]
[400609911,1767743133715,276.05,0.00012329,2]
[400609912,1767743144398,230.04,0.00012329,2]
[400609913,1767743155101,230.04,0.00012329,2]
[400609914,1767743165758,153.36,0.00012329,2]
[400609915,1767743176292,766.81,0.00012329,2]
[400609916,1767743211674,203.38384524,0.00025201,120]
[400610241,1767743342551,-709.08274893,0.00012911,2]
[400610242,1767743342584,-244.33383634,0.00013155,2]
[400610243,1767743342615,-844.82073442,0.00013168,2]
[400610244,1767743363483,155.0,5e-05,2]
[400610269,1767743382641,-460.40801631,0.00013169,2]
[400610270,1767743382675,-527.72772273,0.00013169,2]
[400610271,1767743382707,-527.72772273,0.00013169,2]
[400610272,1767743382739,-527.72772273,0.00013169,2]
[400610273,1767743382770,-527.72772273,0.00013169,2]
[400610274,1767743382803,-527.72772273,0.00013169,2]
[400610275,1767743382834,-527.72772273,0.00013169,2]
[400610276,1767743382866,-527.72772273,0.00013169,2]
[400610277,1767743382898,-527.72772273,0.00013169,2]
[400610278,1767743382929,-107.82268097,0.00013169,2]
[400610279,1767743416046,-300.0,0.00013168,2]
[400610280,1767743416077,-607.0,0.00013168,2]
[400610281,1767743416112,-419.90504176,0.00013169,2]
[400610282,1767743416146,-527.72772273,0.00013169,2]
[400610283,1767743416181,-527.72772273,0.00013169,2]
[400610284,1767743416215,-527.72772273,0.00013169,2]
[400610285,1767743416249,-527.72772273,0.00013169,2]
[400610286,1767743416283,-500.0,0.00013169,2]
[400610287,1767743416316,-640.84858442,0.00013169,2]
[400610288,1767743416350,-342.6809658,0.00013169,2]
[400610325,1767743432094,-157.3190342,0.00013169,2]
[400610327,1767743432104,-500.0,0.00013169,2]
[400610329,1767743432113,-500.0,0.00013169,2]
[400610330,1767743432123,-500.0,0.00013169,2]
[400610332,1767743432133,-500.0,0.00013169,2]
[400610333,1767743432143,-500.0,0.00013169,2]
[400610335,1767743432152,-500.0,0.00013169,2]
[400610337,1767743432161,-442.98430114,0.00013169,2]
[400610360,1767743432369,-500.0,0.00013169,2]
[400610363,1767743432386,-500.0,0.00013169,2]
[400610365,1767743432398,-500.0,0.00013169,2]
[400610367,1767743432408,-500.0,0.00013169,2]
[400610369,1767743432418,-500.0,0.00013169,2]
[400610371,1767743432427,-500.0,0.00013169,2]
[400610373,1767743432437,-500.0,0.00013169,2]
[400610375,1767743432446,-500.0,0.00013169,2]
[400610377,1767743432456,-500.0,0.00013169,2]
[400610379,1767743432467,-500.0,0.00013169,2]
[400610381,1767743432476,-500.0,0.00013169,2]
[400610383,1767743432485,-500.0,0.00013169,2]
[400610385,1767743432495,-500.0,0.00013169,2]
[400610387,1767743432505,-500.0,0.00013169,2]
[400610389,1767743432514,-415.69870186,0.00013169,2]
[400610391,1767743432524,-500.0,0.00013169,2]
[400610393,1767743432534,-500.0,0.00013169,2]
[400610395,1767743432543,-500.0,0.00013169,2]
[400610397,1767743432553,-500.0,0.00013169,2]
[400610399,1767743432562,-183.49697404,0.00013169,2]
[400610401,1767743432573,-500.0,0.00013169,2]
[400610403,1767743432582,-500.0,0.00013169,2]
[400610405,1767743432592,-500.0,0.00013169,2]
[400610407,1767743432601,-500.0,0.00013169,2]
[400610409,1767743432611,-500.0,0.00013169,2]
[400610411,1767743432621,-500.0,0.00013169,2]
[400610413,1767743432631,-500.0,0.00013169,2]
[400610415,1767743432641,-500.0,0.00013169,2]
[400610417,1767743432650,-500.0,0.00013169,2]
[400610419,1767743432660,-500.0,0.00013169,2]
[400610421,1767743432672,-500.0,0.00013169,2]
[400610423,1767743432682,-500.0,0.00013169,2]
[400610425,1767743432693,-500.0,0.00013169,2]
[400610427,1767743432702,-500.0,0.00013169,2]
[400610429,1767743432712,-500.0,0.00013169,2]
[400610431,1767743432721,-500.0,0.00013169,2]
[400610433,1767743432730,-500.0,0.00013169,2]
[400610435,1767743432740,-500.0,0.00013169,2]
[400610438,1767743432753,-527.72772273,0.00013169,2]
[400610440,1767743432762,-500.0,0.00013169,2]
[400610442,1767743432771,-500.0,0.00013169,2]
[400610444,1767743432781,-500.0,0.00013169,2]
[400610446,1767743432790,-500.0,0.00013169,2]
[400610448,1767743432798,-500.0,0.00013169,2]
[400610450,1767743432808,-500.0,0.00013169,2]
[400610452,1767743432816,-500.0,0.00013169,2]
[400610454,1767743432826,-500.0,0.00013169,2]
[400610456,1767743432835,-565.71692164,0.00013169,2]
[400610458,1767743432844,-500.0,0.00013169,2]
[400610460,1767743432853,-500.0,0.00013169,2]
[400610462,1767743432862,-500.0,0.00013169,2]
[400610464,1767743432871,-500.0,0.00013169,2]
[400610466,1767743432880,-500.0,0.00013169,2]
[400610468,1767743432889,-500.0,0.00013169,2]
[400610470,1767743432898,-500.0,0.00013169,2]
[400610472,1767743432907,-500.0,0.00013169,2]
[400610474,1767743432915,-472.68621494,0.00013169,2]
[400610476,1767743432925,-500.0,0.00013169,2]
[400610478,1767743432934,-500.0,0.00013169,2]
[400610480,1767743432942,-500.0,0.00013169,2]
[400610482,1767743432953,-500.0,0.00013169,2]
[400610484,1767743432963,-500.0,0.00013169,2]
[400610486,1767743432971,-500.0,0.00013169,2]
[400610488,1767743432981,-500.0,0.00013169,2]
[400610490,1767743432990,-500.0,0.00013169,2]
[400610492,1767743433000,-500.0,0.00013169,2]
[400610494,1767743433012,-500.0,0.00013169,2]
[400610496,1767743433021,-500.0,0.00013169,2]
[400610498,1767743433031,-500.0,0.00013169,2]
[400610500,1767743433039,-554.11410887,0.00013169,2]
[400610502,1767743433051,-554.11410887,0.00013169,2]
[400610504,1767743433059,-554.11410887,0.00013169,2]
[400610506,1767743433070,-554.11410887,0.00013169,2]
[400610508,1767743433079,-554.11410887,0.00013169,2]
[400610510,1767743433088,-554.11410887,0.00013169,2]
[400610512,1767743433098,-554.11410887,0.00013169,2]
[400610514,1767743433107,-34.69049721,0.00013169,2]
[400610516,1767743433120,-519.42361166,0.00013169,2]
[400610518,1767743433129,-554.11410887,0.00013169,2]
[400610520,1767743433138,-499.99999999,0.00013169,2]
[400610522,1767743433147,-500.0,0.00013169,2]
[400610524,1767743433156,-500.00000001,0.00013169,2]
[400610526,1767743433166,-500.0,0.00013169,2]
[400610528,1767743433175,-554.11410887,0.00013169,2]
[400610530,1767743433184,-554.11410886,0.00013169,2]
[400610532,1767743433193,-554.11410886,0.00013169,2]
[400610534,1767743433202,-554.11410886,0.00013169,2]
[400610536,1767743433211,-554.11410886,0.00013169,2]
[400610538,1767743433220,-3800.20217265,0.0001317,2]
[400610680,1767743438013,-338291.79977379,0.0001317,2]
[400610695,1767743438149,-657907.99805356,0.0001317,2]
[400610697,1767743438159,-500.0,0.00013273,2]
[400610699,1767743438169,-500.0,0.00013273,2]
[400610701,1767743438179,-283.37004819,0.00013273,2]
[400610703,1767743438188,-500.0,0.00013273,2]
[400610705,1767743438198,-500.0,0.00013273,2]
[400610707,1767743438207,-500.75815525,0.00013273,2]
[400610709,1767743438217,-500.0,0.00013273,2]
[400610711,1767743438226,-500.0,0.00013273,2]
[400610713,1767743438236,-500.0,0.00013273,2]
[400610715,1767743438246,-500.0,0.00013273,2]
[400610717,1767743438255,-500.0,0.00013273,2]
[400610719,1767743438264,-500.0,0.00013273,2]
[400610721,1767743438274,-500.0,0.00013273,2]
[400610723,1767743438283,-500.0,0.00013273,2]
[400610725,1767743438293,-500.0,0.00013273,2]
[400610727,1767743438303,-500.0,0.00013273,2]
[400610730,1767743438313,-500.0,0.00013273,2]
[400610732,1767743438323,-500.0,0.00013273,2]
[400610734,1767743438333,-500.93094912,0.00013273,2]
[400610736,1767743438342,-500.0,0.00013273,2]
[400610737,1767743438351,-161.85370912,0.00013273,2]
[400610740,1767743438361,-500.0,0.00013273,2]
[400610741,1767743438370,-500.0,0.00013273,2]
[400610744,1767743438382,-500.0,0.00013273,2]
[400610746,1767743438391,-500.45942406,0.00013273,2]
[400610748,1767743438401,-167.48106999,0.00013273,2]
[400610750,1767743438410,-500.0,0.00013273,2]
[400610752,1767743438420,-428.58199372,0.00013273,2]
[400610754,1767743438430,-500.0,0.00013273,2]
[400610756,1767743438440,-500.0,0.00013273,2]
[400610757,1767743438450,-500.0,0.00013273,2]
[400610760,1767743438460,-500.0,0.00013273,2]
[400610761,1767743438470,-500.0,0.00013273,2]
[400610763,1767743438480,-500.0,0.00013273,2]
[400610765,1767743438491,-500.0,0.00013273,2]
[400610768,1767743438503,-500.0,0.00013273,2]
[400610770,1767743438513,-500.0,0.00013273,2]
[400610772,1767743438523,-500.0,0.00013273,2]
[400610774,1767743438532,-500.0,0.00013273,2]
[400610776,1767743438541,-606.03605592,0.00013273,2]
[400610777,1767743438551,-500.0,0.00013273,2]
[400610779,1767743438560,-210.68917911,0.00013273,2]
[400610781,1767743438569,-232.41734948,0.00013273,2]
[400610783,1767743438579,-159.32617446,0.00013273,2]
[400610785,1767743438588,-500.0,0.00013273,2]
[400610787,1767743438597,-185.45250914,0.00013273,2]
[400610788,1767743438606,-500.89572759,0.00013273,2]
[400610790,1767743438616,-500.0,0.00013273,2]
[400610792,1767743438626,-500.0,0.00013273,2]
[400610794,1767743438636,-268.70604187,0.00013273,2]
[400610796,1767743438645,-500.0,0.00013273,2]
[400610798,1767743438655,-500.0,0.00013273,2]
[400610800,1767743438664,-500.0,0.00013273,2]
[400610802,1767743438673,-500.0,0.00013273,2]
[400610804,1767743438683,-536.41268697,0.00013273,2]
[400610806,1767743438692,-500.0,0.00013273,2]
[400610808,1767743438701,-171.59960392,0.00013273,2]
[400610810,1767743438711,-500.0,0.00013273,2]
[400610812,1767743438720,-500.0,0.00013273,2]
[400610813,1767743438729,-502.95005986,0.00013273,2]
[400610815,1767743438739,-500.0,0.00013273,2]
[400610817,1767743438747,-500.0,0.00013273,2]
[400610819,1767743438757,-165.53460267,0.00013273,2]
[400610821,1767743438765,-500.0,0.00013273,2]
[400610823,1767743438774,-500.0,0.00013273,2]
[400610825,1767743438783,-500.0,0.00013273,2]
[400610827,1767743438792,-500.0,0.00013273,2]
[400610829,1767743438802,-500.0,0.00013273,2]
[400610831,1767743438811,-500.0,0.00013273,2]
[400610833,1767743438821,-151.0,0.000133,2]
[400610835,1767743438831,-151.0,0.000133,2]
[400610837,1767743438841,-151.0,0.000133,2]
[400610839,1767743438850,-151.0,0.000133,2]
[400610841,1767743438860,-151.0,0.000133,2]
[400610843,1767743438869,-151.0,0.000133,2]
[400610845,1767743438879,-151.0,0.000133,2]
[400610847,1767743438888,-151.0,0.000133,2]
[400610849,1767743438898,-151.0,0.000133,2]
[400610851,1767743438907,-151.0,0.000133,2]
[400610853,1767743438916,-151.0,0.000133,2]
[400610855,1767743438925,-151.0,0.000133,2]
[400610857,1767743438935,-151.0,0.000133,2]
[400610859,1767743438944,-151.0,0.000133,2]
[400610861,1767743438953,-151.0,0.000133,2]
[400610863,1767743438962,-151.0,0.000133,2]
[400610865,1767743438972,-151.0,0.000133,2]
[400610867,1767743438981,-151.0,0.000133,2]
[400610869,1767743438991,-4509.48914467,0.00013437,2]
[400610871,1767743439002,-300.0,0.00013537,2]
[400610873,1767743439012,-300.0,0.00013537,2]
[400610875,1767743439022,-300.0,0.00013537,2]
[400610876,1767743439031,-300.0,0.00013537,2]
[400610878,1767743439041,-300.0,0.00013537,2]
[400610880,1767743439050,-300.0,0.00013537,2]
[400610882,1767743439060,-300.0,0.00013537,2]
[400610884,1767743439070,-300.0,0.00013537,2]
[400610886,1767743439081,-300.0,0.00013537,2]
[400610888,1767743439090,-300.0,0.00013537,2]
[400610890,1767743439098,-300.0,0.00013537,2]
[400610892,1767743439108,-300.0,0.00013537,2]
[400610894,1767743439117,-300.0,0.00013537,2]
[400610896,1767743439126,-300.0,0.00013537,2]
[400610898,1767743439136,-300.0,0.00013537,2]
[400610900,1767743439145,-600.0,0.00013537,2]
[400610902,1767743439154,-300.0,0.00013673,2]
[400610904,1767743439163,-500.0,0.00013698,2]
[400610906,1767743439173,-500.0,0.00013698,2]
[400610908,1767743439182,-500.0,0.00013698,2]
[400610910,1767743439192,-500.0,0.00013698,2]
[400610912,1767743439201,-500.0,0.00013698,2]
[400610914,1767743439211,-500.0,0.00013698,2]
[400610916,1767743439221,-3510.39,0.00013698,2]
[400610918,1767743439230,-3510.39,0.00013698,2]
[400610920,1767743439241,-3510.39,0.00013698,2]
[400610922,1767743439250,-3510.39,0.00013698,2]
[400610924,1767743439260,-3510.39,0.00013698,2]
[400610926,1767743439270,-3510.39,0.00013698,2]
[400610928,1767743439280,-3510.39,0.00013698,2]
[400610930,1767743439291,-3510.39,0.00013698,2]
[400610932,1767743439306,-3510.39,0.00013698,2]
[400610934,1767743439315,-3510.39,0.00013698,2]
[400610936,1767743439324,-3510.39,0.00013698,2]
[400610938,1767743439334,-3510.39,0.00013698,2]
[400610940,1767743439343,-3510.39,0.00013698,2]
[400610942,1767743439352,-3510.39,0.00013698,2]
[400610944,1767743439362,-3510.39,0.00013698,2]
[400610946,1767743439371,-3510.39,0.00013698,2]
[400610948,1767743439382,-3510.39,0.00013698,2]
[400610950,1767743439391,-3510.39,0.00013698,2]
[400610952,1767743439400,-3510.39,0.00013698,2]
[400610954,1767743439410,-3510.39,0.00013698,2]
[400610956,1767743439422,-3510.39,0.00013698,2]
[400610958,1767743439432,-3510.39,0.00013698,2]
[400610960,1767743439441,-3510.39,0.00013698,2]
[400610962,1767743439450,-3510.46251885,0.00013698,2]
[400610964,1767743439459,-500.0,0.00013698,2]
[400610966,1767743439468,-580.76,0.00013698,2]
[400610968,1767743439477,-500.0,0.00013698,2]
[400610970,1767743439487,-577.08,0.00013698,2]
[400610972,1767743439496,-500.0,0.00013698,2]
[400610974,1767743439506,-500.0,0.00013698,2]
[400610976,1767743439516,-500.0,0.00013698,2]
[400610978,1767743439525,-500.0,0.00013698,2]
[400610980,1767743439534,-361.95914229,0.00013698,2]
[400610981,1767743439543,-466.89772029,0.00013698,2]
[400610983,1767743439552,-1000.0,0.00013699,2]
[400610985,1767743439561,-885.4942762,0.00013699,2]
[400610987,1767743439571,-500.0,0.00013699,2]
[400610989,1767743439579,-500.0,0.00013699,2]
[400610991,1767743439589,-500.0,0.00013699,2]
[400610993,1767743439598,-500.0,0.00013699,2]
[400610995,1767743439607,-500.0,0.00013699,2]
[400610997,1767743439616,-500.0,0.00013699,2]
[400610999,1767743439626,-500.0,0.00013699,2]
[400611001,1767743439635,-500.0,0.00013699,2]
[400611003,1767743439644,-500.0,0.00013699,2]
[400611005,1767743439654,-500.0,0.00013699,2]
[400611007,1767743439663,-500.0,0.00013699,2]
[400611009,1767743439673,-500.0,0.00013699,2]
[400611010,1767743439682,-504.37236451,0.00013699,2]
[400611012,1767743439691,-500.0,0.00013699,2]
[400611014,1767743439700,-500.0,0.00013699,2]
[400611016,1767743439709,-500.0,0.00013699,2]
[400611018,1767743439718,-500.0,0.00013699,2]
[400611020,1767743439727,-500.0,0.00013699,2]
[400611022,1767743439736,-500.0,0.00013699,2]
[400611025,1767743439745,-500.0,0.00013699,2]
[400611027,1767743439754,-500.0,0.00013699,2]
[400611029,1767743439764,-500.0,0.00013699,2]
[400611031,1767743439773,-500.17698717,0.00013699,2]
[400611033,1767743439782,-500.0,0.00013699,2]
[400611035,1767743439791,-500.0,0.00013699,2]
[400611037,1767743439801,-634.09365022,0.00013699,2]
[400611039,1767743439810,-500.74532212,0.00013699,2]
[400611041,1767743439819,-254.27500282,0.00013699,2]
[400611043,1767743439828,-500.0,0.00013699,2]
[400611045,1767743439837,-500.0,0.00013699,2]
[400611047,1767743439846,-500.0,0.00013699,2]
[400611050,1767743439865,-500.0,0.00013699,2]
[400611053,1767743439878,-500.0,0.00013699,2]
[400611055,1767743439887,-540.98419624,0.00013699,2]
[400611057,1767743439897,-500.0,0.00013699,2]
[400611059,1767743439907,-500.0,0.00013699,2]
[400611061,1767743439917,-500.71714379,0.00013699,2]
[400611080,1767743440088,-500.0,0.00013699,2]
[400611082,1767743440099,-500.0,0.00013699,2]
[400611084,1767743440108,-500.0,0.00013699,2]
[400611085,1767743440118,-500.0,0.00013699,2]
[400611086,1767743440127,-500.0,0.00013699,2]
[400611087,1767743440136,-500.0,0.00013699,2]
[400611088,1767743440145,-501.00450759,0.00013699,2]
[400611089,1767743440154,-500.0,0.00013699,2]
[400611090,1767743440163,-500.93963039,0.00013699,2]
[400611091,1767743440171,-500.7233053,0.00013699,2]
[400611092,1767743440180,-526.06901587,0.00013699,2]
[400611093,1767743440190,-351.22077635,0.00013699,2]
[400611094,1767743440199,-1000.0,0.00013821,2]
[400611095,1767743440208,-1000.0,0.00013821,2]
[400611096,1767743440217,-502.25371869,0.00013821,2]
[400611097,1767743440226,-1000.0,0.00013821,2]
[400611098,1767743440235,-1000.0,0.00013821,2]
[400611099,1767743440245,-603.20077108,0.00013821,2]
[400611100,1767743440254,-382.63199019,0.00013821,2]
[400611101,1767743440263,-1000.0,0.00013821,2]
[400611102,1767743440273,-361.95620737,0.00013821,2]
[400611103,1767743440281,-1000.0,0.00013821,2]
[400611104,1767743440290,-1000.0,0.00013821,2]
[400611105,1767743440299,-1000.0,0.00013821,2]
[400611106,1767743440308,-275.69590667,0.00013821,2]
[400611107,1767743440317,-406.18034584,0.00013821,2]
[400611108,1767743440326,-1000.0,0.00013821,2]
[400611109,1767743440335,-325.41046697,0.00013821,2]
[400611110,1767743440343,-1000.0,0.00013821,2]
[400611111,1767743440352,-1000.0,0.00013821,2]
[400611112,1767743440362,-15000.0,0.0001386,2]
[400611114,1767743440371,-163.60914411,0.00013973,2]
[400611116,1767743440380,-1050.63549114,0.00014023,2]
[400611118,1767743440389,-295.88399766,0.00014175,2]
[400611120,1767743440399,-600.0,0.00014221,2]
[400611122,1767743440408,-501.56829016,0.00014247,2]
[400611124,1767743440417,-1000.0,0.00014247,2]
[400611127,1767743440427,-504.33287174,0.00014247,2]
[400611129,1767743440437,-500.0,0.00014247,2]
[400611131,1767743440446,-520.45931442,0.00014247,2]
[400611133,1767743440455,-1000.0,0.00014247,2]
[400611135,1767743440464,-500.0,0.00014247,2]
[400611137,1767743440473,-1000.0,0.00014247,2]
[400611139,1767743440482,-500.0,0.00014247,2]
[400611141,1767743440492,-500.61401424,0.00014247,2]
[400611142,1767743440502,-1000.0,0.00014247,2]
[400611145,1767743440511,-1000.0,0.00014247,2]
[400611146,1767743440521,-1000.0,0.00014247,2]
[400611148,1767743440530,-501.17135178,0.00014247,2]
[400611150,1767743440540,-500.0,0.00014247,2]
[400611153,1767743440549,-500.84600982,0.00014247,2]
[400611155,1767743440559,-500.0,0.00014247,2]
[400611157,1767743440568,-500.84667986,0.00014247,2]
[400611159,1767743440577,-1000.0,0.00014247,2]
[400611160,1767743440586,-602.91356518,0.00014247,2]
[400611163,1767743440595,-580.83767681,0.00014247,2]
[400611165,1767743440606,-500.76143899,0.00014247,2]
[400611167,1767743440615,-399.54515289,0.00014368,2]
[400611169,1767743440626,-500.0,0.00014368,2]
[400611170,1767743440635,-1500.0,0.00014368,2]
[400611172,1767743440645,-1500.0,0.00014368,2]
[400611174,1767743440655,-1000.0,0.00014368,2]
[400611176,1767743440664,-1500.0,0.00014368,2]
[400611178,1767743440673,-500.0,0.00014368,2]
[400611180,1767743440683,-1000.0,0.00014368,2]
[400611182,1767743440692,-698.64498703,0.00014368,2]
[400611184,1767743440702,-598.44792801,0.00014368,2]
[400611186,1767743440711,-1500.0,0.00014368,2]
[400611188,1767743440719,-420.0,0.00014438,2]
[400611190,1767743440728,-498.43054045,0.00014591,2]
[400611192,1767743440738,-727.40712175,0.00014768,2]
[400611194,1767743440747,-1500.0,0.00014795,2]
[400611196,1767743440756,-1500.0,0.00014795,2]
[400611198,1767743440766,-1500.0,0.00014795,2]
[400611200,1767743440775,-1500.0,0.00014795,2]
[400611202,1767743440783,-533.7772006,0.00014795,2]
[400611204,1767743440792,-100000.0,0.00014882,2]
[400611206,1767743440802,-720.0,0.00014891,2]
[400611208,1767743440811,-2000.0,0.00014916,2]
[400611210,1767743440820,-2000.0,0.00014916,2]
[400611212,1767743440829,-1000.0,0.00015,2]
[400611214,1767743440839,-2000.0,0.00015342,2]
[400611216,1767743440848,-2000.0,0.00015342,2]
[400611218,1767743440857,-2000.0,0.00015342,2]
[400611220,1767743440866,-2000.0,0.00015342,2]
[400611222,1767743440875,-2500.0,0.00015464,2]
[400611224,1767743440885,-2500.0,0.00015464,2]
[400611226,1767743440894,-587.0,0.00015831,2]
[400611228,1767743440903,-2500.0,0.0001589,2]
[400611230,1767743440913,-2500.0,0.0001589,2]
[400611232,1767743440922,-2500.0,0.0001589,2]
[400611234,1767743440931,-2500.0,0.0001589,2]
[400611236,1767743440940,-500.0,0.00015912,2]
[400611238,1767743440949,-500.0,0.00015912,2]
[400611240,1767743440959,-500.0,0.00015912,2]
[400611242,1767743440968,-500.0,0.00015912,2]
[400611244,1767743440977,-500.0,0.00015912,2]
[400611246,1767743440987,-500.0,0.00015912,2]
[400611248,1767743440996,-500.0,0.00015912,2]
[400611250,1767743441009,-500.0,0.00015912,2]
[400611252,1767743441018,-500.0,0.00015912,2]
[400611254,1767743441027,-500.0,0.00015912,2]
[400611256,1767743441036,-500.0,0.00015912,2]
[400611258,1767743441047,-500.0,0.00015912,2]
[400611260,1767743441056,-500.0,0.00015912,2]
[400611262,1767743441066,-500.0,0.00015912,2]
[400611264,1767743441078,-500.0,0.00015912,2]
[400611266,1767743441087,-500.0,0.00015912,2]
[400611268,1767743441096,-511.14869574,0.00015912,2]
[400611270,1767743441105,-15000.0,0.00015939,2]
[400611272,1767743441115,-3000.0,0.00016012,2]
[400611274,1767743441125,-3000.0,0.00016012,2]
[400611276,1767743441134,-729.82313887,0.00016015,4]
[400611278,1767743441144,-4509.48914465,0.00016264,2]
[400611280,1767743441153,-864.0,0.0001638,2]
[400611282,1767743441163,-3000.0,0.00016438,2]
[400611285,1767743441173,-3000.0,0.00016438,2]
[400611286,1767743441183,-3000.0,0.00016438,2]
[400611288,1767743441192,-1518.27095848,0.00016438,2]
[400611290,1767743441201,-183.81,0.0001644,2]
[400611292,1767743441211,-183.81,0.0001644,2]
[400611295,1767743441220,-200.0,0.00016473,2]
[400611297,1767743441230,-3500.0,0.0001656,2]
[400611299,1767743441240,-3500.0,0.0001656,2]
[400611301,1767743441249,-746.34388911,0.00016986,2]
[400611303,1767743441258,-2985.37555645,0.00016986,2]
[400611305,1767743441268,-3500.0,0.00016986,2]
[400611307,1767743441278,-3500.0,0.00016986,2]
[400611309,1767743441287,-2692.18736728,0.00016986,2]
[400611311,1767743441296,-4000.0,0.00017108,2]
[400611313,1767743441305,-4000.0,0.00017108,2]
[400611315,1767743441314,-1041.66666667,0.0001711,2]
[400611317,1767743441327,-228.70126076,0.00017226,2]
[400611319,1767743441337,-914.80504303,0.00017226,2]
[400611321,1767743441347,-2058.31134682,0.00017226,2]
[400611323,1767743441357,-7906.0,0.0001726,2]
[400611325,1767743441367,-500.0,0.0001726,2]
[400611327,1767743441376,-500.0,0.0001726,2]
[400611329,1767743441386,-3659.22017213,0.00017315,2]
[400611331,1767743441395,-823.0,0.00017358,2]
[400611333,1767743441406,-250.0,0.00017397,2]
[400611335,1767743441415,-7906.0,0.00017397,2]
[400611337,1767743441425,-569.00000001,0.00017397,2]
[400611339,1767743441434,-500.0,0.00017397,2]
[400611341,1767743441443,-250.0,0.00017432,2]
[400611343,1767743441452,-982.19436999,0.00017438,7]
[400611345,1767743441461,-7906.0,0.00017534,2]